fUST/lending_fUST_20240725
["ID","MTS","AMOUNT","RATE_DAILY","PERIOD"]
[333136008,1721885441193,-151.418861,0.00013698,2]
[333136011,1721885441203,-500.0,0.00013698,2]
[333136013,1721885441214,-500.0,0.00013698,2]
[333136015,1721885441226,-242.54899656,0.00013698,2]
[333136017,1721885441236,-500.0,0.00013698,2]
[333136019,1721885441245,-500.0,0.00013698,2]
[333136021,1721885441255,-502.22399325,0.00013698,2]
[333136023,1721885441265,-500.0,0.00013698,2]
[333136025,1721885441277,-500.0,0.00013698,2]
[333136027,1721885441288,-500.0,0.00013698,2]
[333136029,1721885441298,-500.0,0.00013698,2]
[333136031,1721885441308,-500.80552169,0.00013698,2]
[333136033,1721885441319,-500.0,0.00013698,2]
[333136035,1721885441330,-503.21592375,0.00013698,2]
[333136038,1721885441343,-504.31393444,0.00013698,2]
[333136040,1721885441353,-815.74,0.00013698,2]
[333136042,1721885441364,-500.0,0.00013698,2]
[333136044,1721885441374,-500.0,0.00013698,2]
[333136046,1721885441383,-493.12609082,0.00013698,2]
[333136048,1721885441393,-500.0,0.00013698,2]
[333136050,1721885441402,-500.0,0.00013698,2]
[333136052,1721885441412,-500.0,0.00013698,2]
[333136054,1721885441422,-505.28780078,0.00013698,2]
[333136056,1721885441431,-500.0,0.00013698,2]
[333136058,1721885441442,-800.3,0.00013698,2]
[333136060,1721885441451,-501.469138,0.00013698,2]
[333136062,1721885441461,-500.0,0.00013698,2]
[333136064,1721885441470,-469.06380217,0.00013698,2]
[333136066,1721885441480,-500.0,0.00013698,2]
[333136068,1721885441493,-501.60133166,0.00013698,2]
[333136070,1721885441504,-500.0,0.00013698,2]
[333136073,1721885441514,-500.0,0.00013698,2]
[333136075,1721885441525,-500.73041792,0.00013698,2]
[333136077,1721885441537,-500.0,0.00013698,2]
[333136079,1721885441547,-501.93587151,0.00013698,2]
[333136081,1721885441558,-500.0,0.00013698,2]
[333136083,1721885441568,-500.0,0.00013698,2]
[333136085,1721885441578,-151.0,0.00013698,2]
[333136087,1721885441589,-151.0,0.00013698,2]
[333136090,1721885441599,-500.0,0.00013698,2]
[333136091,1721885441610,-500.0,0.00013698,2]
[333136094,1721885441620,-1842.35,0.00013698,2]
[333136096,1721885441630,-500.0,0.00013698,2]
[333136098,1721885441639,-151.0,0.00013698,2]
[333136100,1721885441649,-151.0,0.00013698,2]
[333136102,1721885441659,-1043.88,0.00013698,2]
[333136104,1721885441669,-500.0,0.00013698,2]
[333136106,1721885441678,-500.0,0.00013698,2]
[333136108,1721885441688,-501.62904518,0.00013698,2]
[333136110,1721885441698,-500.0,0.00013698,2]
[333136112,1721885441709,-500.0,0.00013698,2]
[333136114,1721885441718,-500.0,0.00013698,2]
[333136116,1721885441728,-500.0,0.00013698,2]
[333136118,1721885441738,-500.0,0.00013698,2]
[333136120,1721885441748,-501.4182311,0.00013698,2]
[333136122,1721885441758,-500.0,0.00013698,2]
[333136124,1721885441767,-500.0,0.00013698,2]
[333136126,1721885441777,-500.0,0.00013698,2]
[333136128,1721885441787,-500.0,0.00013698,2]
[333136130,1721885441796,-500.0,0.00013698,2]
[333136132,1721885441806,-1491.08,0.00013698,2]
[333136134,1721885441816,-1836.92,0.00013698,2]
[333136136,1721885441825,-500.0,0.00013698,2]
[333136138,1721885441836,-500.0,0.00013698,2]
[333136140,1721885441846,-500.0,0.00013698,2]
[333136142,1721885441858,-500.0,0.00013698,2]
[333136144,1721885441867,-500.0,0.00013698,2]
[333136146,1721885441877,-500.0,0.00013698,2]
[333136163,1721885442023,-586.8,0.00013698,2]
[333136165,1721885442033,-500.0,0.00013698,2]
[333136167,1721885442043,-500.0,0.00013698,2]
[333136169,1721885442053,-500.0,0.00013698,2]
[333136171,1721885442064,-500.0,0.00013698,2]
[333136173,1721885442073,-500.0,0.00013698,2]
[333136175,1721885442083,-500.0,0.00013698,2]
[333136177,1721885442093,-449.72840881,0.00013698,2]
[333136179,1721885442104,-504.43162346,0.00013698,2]
[333136181,1721885442115,-567.04,0.00013698,2]
[333136183,1721885442126,-500.0,0.00013698,2]
[333136185,1721885442136,-500.0,0.00013698,2]
[333136187,1721885442150,-767.03,0.00013698,2]
[333136189,1721885442159,-502.25901746,0.00013698,2]
[333136192,1721885442171,-500.70760007,0.00013698,2]
[333136194,1721885442182,-500.0,0.00013698,2]
[333136196,1721885442193,-500.0,0.00013698,2]
[333136198,1721885442203,-500.0,0.00013698,2]
[333136200,1721885442214,-500.0,0.00013698,2]
[333136202,1721885442226,-500.0,0.00013698,2]
[333136204,1721885442237,-500.0,0.00013698,2]
[333136206,1721885442246,-500.0,0.00013698,2]
[333136208,1721885442255,-500.0,0.00013698,2]
[333136210,1721885442265,-500.0,0.00013698,2]
[333136212,1721885442275,-500.0,0.00013698,2]
[333136214,1721885442286,-500.0,0.00013698,2]
[333136217,1721885442296,-500.0,0.00013698,2]
[333136219,1721885442306,-500.0,0.00013698,2]
[333136221,1721885442317,-500.0,0.00013698,2]
[333136223,1721885442327,-500.0,0.00013698,2]
[333136225,1721885442337,-500.0,0.00013698,2]
[333136227,1721885442347,-500.0,0.00013698,2]
[333136229,1721885442358,-500.0,0.00013698,2]
[333136231,1721885442368,-501.19607562,0.00013698,2]
[333136233,1721885442379,-500.0,0.00013698,2]
[333136235,1721885442388,-500.0,0.00013698,2]
[333136237,1721885442398,-226.42801487,0.00013698,2]
[333136239,1721885442408,-500.0,0.00013698,2]
[333136241,1721885442417,-500.0,0.00013698,2]
[333136243,1721885442427,-500.0,0.00013698,2]
[333136245,1721885442436,-500.0,0.00013698,2]
[333136248,1721885442446,-500.0,0.00013698,2]
[333136251,1721885442456,-1856.71,0.00013698,2]
[333136254,1721885442465,-500.0,0.00013698,2]
[333136257,1721885442475,-501.67212361,0.00013698,2]
[333136260,1721885442485,-500.0,0.00013698,2]
[333136263,1721885442495,-500.0,0.00013698,2]
[333136266,1721885442505,-500.0,0.00013698,2]
[333136269,1721885442515,-502.24919647,0.00013698,2]
[333136272,1721885442524,-500.0,0.00013698,2]
[333136275,1721885442533,-501.84068966,0.00013698,2]
[333136278,1721885442543,-501.06227153,0.00013698,2]
[333136282,1721885442552,-500.0,0.00013698,2]
[333136286,1721885442562,-500.0,0.00013698,2]
[333136290,1721885442571,-500.0,0.00013698,2]
[333136294,1721885442580,-500.0,0.00013698,2]
[333136298,1721885442590,-500.0,0.00013698,2]
[333136300,1721885442600,-500.0,0.00013698,2]
[333136304,1721885442611,-500.0,0.00013698,2]
[333136309,1721885442620,-500.0,0.00013698,2]
[333136313,1721885442630,-500.0,0.00013698,2]
[333136317,1721885442640,-500.0,0.00013698,2]
[333136321,1721885442650,-500.0,0.00013698,2]
[333136324,1721885442660,-500.0,0.00013698,2]
[333136327,1721885442671,-500.0,0.00013698,2]
[333136331,1721885442681,-500.0,0.00013698,2]
[333136334,1721885442691,-500.0,0.00013698,2]
[333136336,1721885442701,-500.0,0.00013698,2]
[333136338,1721885442711,-500.0,0.00013698,2]
[333136340,1721885442720,-1341.18,0.00013698,2]
[333136342,1721885442730,-169.30103475,0.00013698,2]
[333136344,1721885442740,-259.9120708,0.00013698,2]
[333136346,1721885442750,-500.0,0.00013698,2]
[333136348,1721885442760,-500.0,0.00013698,2]
[333136350,1721885442770,-503.08553153,0.00013698,2]
[333136352,1721885442780,-513.92,0.00013698,2]
[333136354,1721885442790,-500.0,0.00013698,2]
[333136356,1721885442800,-501.27122874,0.00013698,2]
[333136358,1721885442810,-500.0,0.00013698,2]
[333136360,1721885442820,-500.0,0.00013698,2]
[333136362,1721885442830,-219.56414484,0.00013698,2]
[333136364,1721885442840,-500.0,0.00013698,2]
[333136367,1721885442850,-545.39409708,0.00013698,2]
[333136369,1721885442861,-500.0,0.00013698,2]
[333136371,1721885442871,-1668.64,0.00013698,2]
[333136373,1721885442882,-500.0,0.00013698,2]
[333136375,1721885442893,-500.0,0.00013698,2]
[333136377,1721885442905,-501.17638914,0.00013698,2]
[333136379,1721885442915,-500.0,0.00013698,2]
[333136381,1721885442926,-413.32873,0.00013698,2]
[333136383,1721885442938,-413.32873,0.00013698,2]
[333136386,1721885442950,-413.32873,0.00013698,2]
[333136388,1721885442959,-500.0,0.00013698,2]
[333136390,1721885442969,-1026.91,0.00013698,2]
[333136392,1721885442979,-500.0,0.00013698,2]
[333136394,1721885442990,-413.32873,0.00013698,2]
[333136396,1721885443001,-538.108485,0.00013698,2]
[333136398,1721885443011,-413.32873,0.00013698,2]
[333136400,1721885443022,-413.32873,0.00013698,2]
[333136402,1721885443034,-500.0,0.00013698,2]
[333136404,1721885443045,-500.0,0.00013698,2]
[333136407,1721885443056,-500.0,0.00013698,2]
[333136409,1721885443066,-500.0,0.00013698,2]
[333136411,1721885443076,-500.0,0.00013698,2]
[333136413,1721885443086,-500.0,0.00013698,2]
[333136415,1721885443096,-500.0,0.00013698,2]
[333136417,1721885443108,-302.56673336,0.00013698,2]
[333136419,1721885443118,-502.29692296,0.00013698,2]
[333136421,1721885443128,-522.08739497,0.00013698,2]
[333136423,1721885443139,-500.0,0.00013698,2]
[333136425,1721885443152,-569.12686434,0.00013698,2]
[333136427,1721885443163,-500.0,0.00013698,2]
[333136430,1721885443174,-500.0,0.00013698,2]
[333136432,1721885443185,-505.3414026,0.00013698,2]
[333136434,1721885443196,-502.60978537,0.00013698,2]
[333136436,1721885443207,-500.0,0.00013698,2]
[333136438,1721885443220,-500.0,0.00013698,2]
[333136440,1721885443229,-500.0,0.00013698,2]
[333136441,1721885443240,-503.60558488,0.00013698,2]
[333136442,1721885443251,-687.66,0.00013698,2]
[333136443,1721885443261,-500.0,0.00013698,2]
[333136444,1721885443271,-501.25334069,0.00013698,2]
[333136445,1721885443282,-500.0,0.00013698,2]
[333136446,1721885443292,-500.0,0.00013698,2]
[333136447,1721885443302,-502.78747536,0.00013698,2]
[333136448,1721885443312,-500.0,0.00013698,2]
[333136449,1721885443321,-500.0,0.00013698,2]
[333136450,1721885443331,-514.07271305,0.00013698,2]
[333136451,1721885443341,-505.78055762,0.00013698,2]
[333136452,1721885443350,-502.04426339,0.00013698,2]
[333136453,1721885443359,-500.0,0.00013698,2]
[333136454,1721885443370,-500.0,0.00013698,2]
[333136455,1721885443380,-500.0,0.00013698,2]
[333136456,1721885443390,-500.0,0.00013698,2]
[333136458,1721885443399,-500.0,0.00013698,2]
[333136460,1721885443409,-500.0,0.00013698,2]
[333136462,1721885443419,-500.0,0.00013698,2]
[333136464,1721885443429,-151.0,0.00013698,2]
[333136466,1721885443438,-151.0,0.00013698,2]
[333136468,1721885443449,-151.0,0.00013698,2]
[333136470,1721885443460,-512.08549856,0.00013698,2]
[333136473,1721885443470,-500.0,0.00013698,2]
[333136475,1721885443480,-510.11642446,0.00013698,2]
[333136477,1721885443490,-500.0,0.00013698,2]
[333136479,1721885443500,-500.0,0.00013698,2]
[333136481,1721885443512,-502.05208019,0.00013698,2]
[333136483,1721885443523,-1695.44,0.00013698,2]
[333136485,1721885443534,-500.0,0.00013698,2]
[333136487,1721885443543,-500.0,0.00013698,2]
[333136489,1721885443555,-530.53788143,0.00013698,2]
[333136491,1721885443565,-1046.34,0.00013698,2]
[333136494,1721885443576,-500.0,0.00013698,2]
[333136496,1721885443586,-500.0,0.00013698,2]
[333136498,1721885443597,-500.0,0.00013698,2]
[333136500,1721885443608,-500.0,0.00013698,2]
[333136502,1721885443618,-500.0,0.00013698,2]
[333136504,1721885443629,-500.0,0.00013698,2]
[333136506,1721885443641,-505.29772998,0.00013698,2]
[333136508,1721885443651,-500.0,0.00013698,2]
[333136510,1721885443660,-500.0,0.00013698,2]
[333136512,1721885443669,-1107.38,0.00013698,2]
[333136514,1721885443679,-513.68775755,0.00013698,2]
[333136516,1721885443689,-500.0,0.00013698,2]
[333136518,1721885443699,-640.32333384,0.00013698,2]
[333136520,1721885443708,-152.658298,0.00013698,2]
[333136522,1721885443718,-500.0,0.00013698,2]
[333136524,1721885443728,-222.77639781,0.00013698,2]
[333136526,1721885443739,-503.92135759,0.00013698,2]
[333136528,1721885443751,-500.0,0.00013698,2]
[333136530,1721885443761,-500.0,0.00013698,2]
[333136532,1721885443773,-500.0,0.00013698,2]
[333136535,1721885443784,-500.0,0.00013698,2]
[333136537,1721885443794,-271.33520489,0.00013698,2]
[333136539,1721885443804,-500.0,0.00013698,2]
[333136541,1721885443814,-500.0,0.00013698,2]
[333136543,1721885443824,-510.51,0.00013698,2]
[333136545,1721885443834,-859.67,0.00013698,2]
[333136547,1721885443844,-1633.35,0.00013698,2]
[333136549,1721885443856,-500.0,0.00013698,2]
[333136551,1721885443869,-151.0,0.00013698,2]
[333136553,1721885443879,-151.0,0.00013698,2]
[333136555,1721885443890,-1221.99,0.00013698,2]
[333136558,1721885443902,-500.80298381,0.00013698,2]
[333136560,1721885443912,-500.0,0.00013698,2]
[333136562,1721885443925,-520.73279932,0.00013698,2]
[333136564,1721885443935,-501.8751649,0.00013698,2]
[333136566,1721885443945,-500.0,0.00013698,2]
[333136568,1721885443956,-592.88262029,0.00013698,2]
[333136570,1721885443966,-393.8412689,0.00013698,2]
[333136572,1721885443975,-500.0,0.00013698,2]
[333136574,1721885443985,-500.0,0.00013698,2]
[333136576,1721885443997,-1278.19,0.00013698,2]
[333136579,1721885444007,-500.0,0.00013698,2]
[333136581,1721885444018,-501.81975643,0.00013698,2]
[333136583,1721885444028,-500.0,0.00013698,2]
[333136585,1721885444039,-311.18847774,0.00013698,2]
[333136612,1721885444292,-188.81152226,0.00013698,2]
[333136615,1721885444306,-255.15035679,0.00013698,2]
[333136617,1721885444317,-500.0,0.00013698,2]
[333136619,1721885444327,-509.66911467,0.00013698,2]
[333136621,1721885444336,-504.18140264,0.00013698,2]
[333136623,1721885444346,-500.0,0.00013698,2]
[333136625,1721885444357,-500.0,0.00013698,2]
[333136627,1721885444367,-520.23699786,0.00013698,2]
[333136629,1721885444376,-724.94,0.00013698,2]
[333136631,1721885444386,-151.0,0.00013698,2]
[333136633,1721885444396,-492.6506553,0.00013698,2]
[333136635,1721885444405,-151.0,0.00013698,2]
[333136637,1721885444416,-148.12995973,0.00013698,2]
[333136642,1721885444456,-2.87004027,0.00013698,2]
[333136644,1721885444466,-562.90123855,0.00013698,2]
[333136646,1721885444476,-151.0,0.00013698,2]
[333136648,1721885444486,-151.0,0.00013698,2]
[333136650,1721885444496,-500.0,0.00013698,2]
[333136652,1721885444507,-500.0,0.00013698,2]
[333136654,1721885444518,-151.0,0.00013698,2]
[333136656,1721885444529,-151.0,0.00013698,2]
[333136659,1721885444540,-500.0,0.00013698,2]
[333136661,1721885444552,-152.09303,0.00013698,2]
[333136663,1721885444562,-151.0,0.00013698,2]
[333136665,1721885444572,-151.0,0.00013698,2]
[333136667,1721885444583,-151.0,0.00013698,2]
[333136669,1721885444593,-598.66,0.00013698,2]
[333136671,1721885444603,-500.0,0.00013698,2]
[333136673,1721885444614,-500.0,0.00013698,2]
[333136675,1721885444624,-500.0,0.00013698,2]
[333136677,1721885444634,-3580.39,0.00013698,2]
[333136679,1721885444643,-152.9199,0.00013698,2]
[333136681,1721885444653,-210.10830037,0.00013698,2]
[333136684,1721885444663,-1010.45794174,0.00013698,2]
[333136685,1721885444675,-500.0,0.00013698,2]
[333136688,1721885444685,-500.0,0.00013698,2]
[333136689,1721885444695,-151.0,0.00013698,2]
[333136692,1721885444705,-525.78238354,0.00013698,2]
[333136694,1721885444715,-4917.52352521,0.00013698,2]
[333136746,1721885445212,-623.9587351,0.00013698,2]
[333136748,1721885445225,-2642.87773969,0.00013698,2]
[333136750,1721885445235,-500.0,0.00013698,2]
[333136752,1721885445245,-189.834674,0.00013698,2]
[333136754,1721885445255,-189.834674,0.00013698,2]
[333136756,1721885445264,-248.59972455,0.00013698,2]
[333136757,1721885445275,-189.834674,0.00013698,2]
[333136759,1721885445284,-189.834674,0.00013698,2]
[333136762,1721885445294,-151.0,0.00013698,2]
[333136764,1721885445304,-189.834674,0.00013698,2]
[333136767,1721885445314,-151.0,0.00013698,2]
[333136769,1721885445324,-151.0,0.00013698,2]
[333136771,1721885445333,-151.0,0.00013698,2]
[333136773,1721885445343,-151.0,0.00013698,2]
[333136775,1721885445352,-151.0,0.00013698,2]
[333136777,1721885445362,-189.834674,0.00013698,2]
[333136779,1721885445371,-151.0,0.00013698,2]
[333136781,1721885445381,-189.834674,0.00013698,2]
[333136783,1721885445390,-189.834674,0.00013698,2]
[333136785,1721885445399,-615.2683627,0.00013698,2]
[333136787,1721885445409,-189.834674,0.00013698,2]
[333136789,1721885445418,-189.834674,0.00013698,2]
[333136791,1721885445428,-500.0,0.00013698,2]
[333136793,1721885445437,-1823.38,0.00013698,2]
[333136795,1721885445447,-1285.95,0.00013698,2]
[333136797,1721885445456,-924.15,0.00013698,2]
[333136799,1721885445466,-151.0,0.00013698,2]
[333136801,1721885445475,-151.0,0.00013698,2]
[333136803,1721885445486,-151.0,0.00013698,2]
[333136805,1721885445496,-151.0,0.00013698,2]
[333136807,1721885445505,-151.0,0.00013698,2]
[333136809,1721885445516,-500.0,0.00013698,2]
[333136811,1721885445527,-673.77,0.00013698,2]
[333136814,1721885445537,-762.74,0.00013698,2]
[333136816,1721885445547,-151.0,0.00013698,2]
[333136818,1721885445557,-151.0,0.00013698,2]
[333136820,1721885445569,-151.0,0.00013698,2]
[333136822,1721885445579,-151.0,0.00013698,2]
[333136824,1721885445590,-753.79,0.00013698,2]
[333136826,1721885445601,-500.0,0.00013698,2]
[333136828,1721885445612,-502.03324381,0.00013698,2]
[333136830,1721885445622,-500.0,0.00013698,2]
[333136832,1721885445631,-500.0,0.00013698,2]
[333136834,1721885445642,-436.6947334,0.00013698,2]
[333136885,1721885446122,-3169.8752666,0.00013698,2]
[333136888,1721885446132,-500.0,0.00013698,2]
[333136892,1721885446144,-500.0,0.00013698,2]
[333136895,1721885446155,-500.80399101,0.00013698,2]
[333136897,1721885446164,-162.41002391,0.00013698,2]
[333136899,1721885446175,-14221.90997609,0.00013698,2]
[333136901,1721885446184,-5778.35130991,0.00013698,2]
[333136903,1721885446196,-8605.96869009,0.00013698,2]
[333136906,1721885446206,-14384.32,0.00013698,2]
[333136909,1721885446216,-14384.32,0.00013698,2]
[333136912,1721885446227,-903.25,0.00013698,2]
[333136915,1721885446238,-14384.32,0.00013698,2]
[333136918,1721885446248,-500.0,0.00013698,2]
[333136921,1721885446258,-14384.32,0.00013698,2]
[333136923,1721885446268,-14384.32,0.00013698,2]
[333136926,1721885446281,-14384.32,0.00013698,2]
[333136927,1721885446291,-500.0,0.00013698,2]
[333136928,1721885446303,-14384.32,0.00013698,2]
[333136929,1721885446314,-14384.32,0.00013698,2]
[333136930,1721885446324,-14384.32,0.00013698,2]
[333136931,1721885446335,-13153.82684828,0.00013698,2]
[333136937,1721885446478,-772.56662557,0.00013698,2]
[333136945,1721885446543,-0.00117124,0.00013698,2]
[333142825,1721886565134,-200.0,8.22e-05,2]
[333142826,1721886565154,-200.0,8.22e-05,2]
[333142827,1721886565175,-200.9552713,8.385e-05,2]
[333142828,1721886565195,-2740.1805483,8.454e-05,2]
[333142829,1721886565215,-250.0,8.512e-05,2]
[333142830,1721886565236,-965.03278096,8.55e-05,2]
[333142868,1721886633221,-400.0,8.136e-05,2]
[333142869,1721886633232,-200.0,8.14e-05,2]
[333142870,1721886633242,-200.0,8.22e-05,2]
[333142871,1721886633252,-34.51824096,8.55e-05,2]
[333142872,1721886633262,-250.0,9.08e-05,2]
[333142873,1721886633272,-250.0,9.105e-05,2]
[333142874,1721886633282,-5.54713676,9.129e-05,2]
[333142895,1721886638151,-244.45286324,9.129e-05,2]
[333142912,1721886638346,-250.0,9.154e-05,2]
[333142914,1721886638355,-250.0,9.179e-05,2]
[333142915,1721886638368,-250.0,9.204e-05,2]
[333142918,1721886638378,-250.0,9.229e-05,2]
[333142919,1721886638387,-250.0,9.254e-05,2]
[333142921,1721886638397,-250.0,9.279e-05,2]
[333142923,1721886638406,-250.0,9.304e-05,2]
[333142925,1721886638415,-250.0,9.329e-05,2]
[333142927,1721886638425,-250.0,9.354e-05,2]
[333142929,1721886638434,-250.0,9.379e-05,2]
[333142931,1721886638445,-250.0,9.403e-05,2]
[333142933,1721886638454,-250.0,9.428e-05,2]
[333142935,1721886638463,-250.0,9.453e-05,2]
[333142937,1721886638473,-250.0,9.478e-05,2]
[333142939,1721886638482,-250.0,9.503e-05,2]
[333142941,1721886638491,-400.0,9.51e-05,2]
[333142943,1721886638504,-250.0,9.528e-05,2]
[333142945,1721886638514,-250.0,9.553e-05,2]
[333142947,1721886638524,-194.06631879,9.59e-05,2]
[333142949,1721886638533,-300.0,9.59e-05,2]
[333142951,1721886638544,-300.0,9.59e-05,2]
[333142953,1721886638553,-530.88898098,9.999e-05,2]
[333142955,1721886638563,-154.72922386,9.999e-05,2]
[333142957,1721886638573,-181.09524599,9.999e-05,2]
[333142959,1721886638583,-201.30530872,9.999e-05,2]
[333142961,1721886638592,-154.86308045,9.999e-05,2]
[333142963,1721886638604,-154.83734357,9.999e-05,2]
[333142965,1721886638616,-154.69833824,9.999e-05,2]
[333142967,1721886638625,-731.30595831,9.999e-05,2]
[333142969,1721886638634,-196.30125481,9.999e-05,2]
[333142971,1721886638644,-248.87416602,9.999e-05,2]
[333142974,1721886638656,-848.67298078,9.999e-05,2]
[333142976,1721886638666,-156.56123808,9.999e-05,2]
[333142978,1721886638676,-341.75517415,9.999e-05,2]
[333142980,1721886638686,-154.69833824,9.999e-05,2]
[333142982,1721886638696,-726.90527473,9.999e-05,2]
[333142984,1721886638705,-288.28494131,9.999e-05,2]
[333142986,1721886638715,-941.81566876,9.999e-05,2]
[333142988,1721886638724,-968.29265867,9.999e-05,2]
[333142990,1721886638734,-600.34409866,9.999e-05,2]
[333142992,1721886638744,-157.66852788,9.999e-05,2]
[333142994,1721886638754,-519.49324857,9.999e-05,2]
[333142996,1721886638763,-240.59744191,9.999e-05,2]
[333142998,1721886638773,-663.51231387,9.999e-05,2]
[333143000,1721886638783,-439.07850064,9.999e-05,2]
[333143002,1721886638792,-154.69833824,9.999e-05,2]
[333143004,1721886638801,-155.0383145,9.999e-05,2]
[333143006,1721886638811,-188.0737834,9.999e-05,2]
[333143008,1721886638821,-542.61757791,9.999e-05,2]
[333143010,1721886638831,-155.05980589,9.999e-05,2]
[333143012,1721886638841,-778.99945191,9.999e-05,2]
[333143014,1721886638850,-155.01062865,9.999e-05,2]
[333143016,1721886638861,-319.18205091,9.999e-05,2]
[333143018,1721886638870,-160.02872969,9.999e-05,2]
[333143020,1721886638883,-157.67039442,9.999e-05,2]
[333143022,1721886638892,-521.61052637,9.999e-05,2]
[333143024,1721886638903,-154.69833824,9.999e-05,2]
[333143026,1721886638912,-375.7190477,9.999e-05,2]
[333143028,1721886638922,-533.46933228,9.999e-05,2]
[333143030,1721886638932,-156.4756886,9.999e-05,2]
[333143032,1721886638941,-459.2503171,9.999e-05,2]
[333143034,1721886638950,-154.71377951,9.999e-05,2]
[333143036,1721886638960,-155.64887406,9.999e-05,2]
[333143038,1721886638969,-403.39616838,9.999e-05,2]
[333143040,1721886638978,-154.71377951,9.999e-05,2]
[333143042,1721886638989,-247.05162355,9.999e-05,2]
[333143044,1721886638998,-359.82764965,9.999e-05,2]
[333143046,1721886639008,-404.41023413,9.999e-05,2]
[333143048,1721886639017,-154.69833824,0.0001,2]
[333143050,1721886639027,-287.53104938,0.0001,2]
[333143052,1721886639037,-154.71377951,0.0001,2]
[333143054,1721886639046,-24900.0,0.0001015,2]
[333143056,1721886639056,-420.0,0.00010549,2]
[333143058,1721886639066,-420.0,0.00010549,2]
[333143060,1721886639075,-812.3,0.00010959,2]
[333143062,1721886639084,-676.92,0.00010959,2]
[333143064,1721886639093,-564.1,0.00010959,2]
[333143066,1721886639103,-470.08,0.00010959,2]
[333143068,1721886639115,-391.73,0.00010959,2]
[333143070,1721886639124,-326.45,0.00010959,2]
[333143072,1721886639133,-272.04,0.00010959,2]
[333143074,1721886639142,-600.0,0.00011287,2]
[333143075,1721886639152,-587.0,0.00011604,2]
[333143077,1721886639162,-587.0,0.00011604,2]
[333143079,1721886639171,-306.0,0.00012628,2]
[333143081,1721886639180,-823.0,0.00012764,2]
[333143083,1721886639191,-330.0,0.00012764,2]
[333143085,1721886639201,-2631.89723282,0.000129,2]
[333143087,1721886639210,-2631.89723281,0.000129,2]
[333143089,1721886639222,-2631.89723281,0.00013022,2]
[333143091,1721886639231,-800.0,0.00013259,2]
[333143093,1721886639240,-160.0,0.00013363,3]
[333143095,1721886639250,-200.0,0.00013425,2]
[333143097,1721886639260,-150.0,0.00013526,2]
[333143099,1721886639270,-160.0,0.00013583,4]
[333143101,1721886639279,-358.9988408,0.00013598,2]
[333143103,1721886639288,-2553.97324366,0.00013598,2]
[333143105,1721886639298,-602.65047892,0.00013598,2]
[333143106,1721886639308,-3393.83801867,0.000136,2]
[333143107,1721886639318,-150.112233,0.000136,2]
[333143109,1721886639328,-150.112233,0.000136,2]
[333143111,1721886639338,-367.51233122,0.0001366,2]
[333143112,1721886639347,-238511.626565,0.00013688,2]
[333143114,1721886639356,-5306.88604622,0.0001369,2]
[333143116,1721886639368,-152.859258,0.00013698,2]
[333143118,1721886639377,-152.859258,0.00013698,2]
[333143120,1721886639386,-152.859258,0.00013698,2]
[333143122,1721886639396,-152.859258,0.00013698,2]
[333143124,1721886639405,-152.859258,0.00013698,2]
[333143126,1721886639415,-152.859258,0.00013698,2]
[333143128,1721886639424,-152.859258,0.00013698,2]
[333143130,1721886639433,-152.859258,0.00013698,2]
[333143132,1721886639443,-152.859258,0.00013698,2]
[333143134,1721886639453,-152.859258,0.00013698,2]
[333143136,1721886639463,-152.859258,0.00013698,2]
[333143138,1721886639472,-152.859258,0.00013698,2]